bitfinex/quotes_SOLUSD_20220208
["timestamp","ask_amount","ask_price","bid_price","bid_amount"]
[1644278615099,51.61208575,117.89,117.81,12.324]
[1644278615303,51.61208575,117.89,117.81,54.14814212]
[1644278616423,38.62918575,117.89,117.81,54.14814212]
[1644278616621,38.62918575,117.89,117.81,60.14814212]
[1644278617923,38.62918575,117.89,117.81,72.87784212]
[1644278620426,12.7304,117.91,117.81,72.87784212]
[1644278621225,12.9804,117.91,117.81,72.87784212]
[1644278621424,49.28929855,117.91,117.81,72.87784212]
[1644278622727,0.25,117.91,117.81,72.87784212]
[1644278622927,12.7283,117.93,117.81,72.87784212]
[1644278623326,23.8902,117.94,117.81,256.37077956]
[1644278623526,22.5015,117.96,117.82,28.9945]
[1644278623726,41.90187752,117.95,117.85,12.7251]
[1644278623925,54.62787752,117.95,117.86,52.02766586]
[1644278624225,54.62787752,117.95,117.86,58.27766586]
[1644278624926,54.62787752,117.95,117.86,71.00216586]
[1644278625124,54.62787752,117.95,117.86,58.27766586]
[1644278625325,54.62787752,117.95,117.86,12.55]
[1644278625726,2.14682857,117.94,117.84,60.7354]
[1644278625925,12.7296,117.91,117.84,66.9854]
[1644278626527,48.11516897,117.9,117.84,66.9854]
[1644278627126,60.84556897,117.9,117.84,66.9854]
[1644278627327,60.84556897,117.9,117.84,18.55]
[1644278627927,60.84556897,117.9,117.84,12.55]
[1644278630531,60.84556897,117.9,117.84,38.31254851]
[1644278632131,60.84556897,117.9,117.84,12.55]
[1644278632332,60.84556897,117.9,117.84,12.3]
[1644278632535,60.84556897,117.9,117.84,12.55]
[1644278633136,60.84556897,117.9,117.84,53.35988533]
[1644278634534,60.84556897,117.9,117.84,12.55]
[1644278635636,60.84556897,117.9,117.84,50.09941983]
[1644278639037,60.84556897,117.9,117.84,12.55]
[1644278639440,60.84556897,117.9,117.82,0.024]
[1644278639639,60.84556897,117.9,117.82,12.324]
[1644278639840,62.99239754,117.9,117.82,12.324]
[1644278640038,60.84556897,117.9,117.82,12.324]
[1644278640239,61.09556897,117.9,117.82,12.324]
[1644278640440,61.09556897,117.9,117.82,32.72313467]
[1644278640838,61.09556897,117.9,117.82,12.324]
[1644278641039,61.09556897,117.9,117.82,0.024]
[1644278641239,61.09556897,117.9,117.8,12.324]
[1644278641443,63.24239754,117.9,117.81,0.024]
[1644278641640,63.24239754,117.9,117.8,0.024]
[1644278641847,4.242,117.89,117.8,0.024]
[1644278642039,12.7375,117.87,117.8,0.024]
[1644278642240,39.20566891,117.86,117.8,0.024]
[1644278642440,39.20566891,117.86,117.78,37.02339306]
[1644278642643,39.20566891,117.86,117.78,0.024]
[1644278643542,45.93055518,117.84,117.78,0.024]
[1644278643842,45.93055518,117.84,117.77,23.3263]
[1644278644443,45.93055518,117.84,117.77,0.024]
[1644278644641,45.93055518,117.84,117.77,0.274]
[1644278644843,45.93055518,117.84,117.77,0.024]
[1644278645044,12.739,117.82,117.77,0.024]
[1644278645243,45.93055518,117.84,117.76,40.35700681]
[1644278645244,45.93055518,117.84,117.76,40.60700681]
[1644278645443,45.93055518,117.84,117.76,40.63100681]
[1644278645643,45.93055518,117.84,117.76,58.93100681]
[1644278646045,4.244,117.89,117.76,58.93100681]
[1644278646443,10.244,117.89,117.76,58.93100681]
[1644278646648,12.7359,117.86,117.76,71.66720681]
[1644278647144,48.85159088,117.86,117.76,71.66720681]
[1644278647643,48.85159088,117.86,117.77,18.23457993]
[1644278647844,12.7359,117.86,117.78,25.0579]
[1644278648245,12.7359,117.86,117.78,31.3079]
[1644278648645,28.2448,117.92,117.78,33.12017426]
[1644278648848,24.0018,117.92,117.79,73.94498784]
[1644278649048,24.0018,117.92,117.82,12.7286]
[1644278649249,24.0018,117.92,117.82,25.3026]
[1644278649446,24.0018,117.92,117.82,31.3026]
[1644278649948,60.5740459,117.91,117.83,49.04815363]
[1644278650150,60.5740459,117.91,117.83,55.04815363]
[1644278650347,60.5740459,117.91,117.83,55.29815363]
[1644278650749,60.8240459,117.91,117.83,55.29815363]
[1644278650950,60.8240459,117.91,117.83,12.9788]
[1644278651149,60.8240459,117.91,117.83,0.25]
[1644278651350,60.8240459,117.91,117.82,12.574]
[1644278651548,60.8240459,117.91,117.82,18.574]
[1644278652054,60.8240459,117.91,117.82,61.39704694]
[1644278652952,60.8240459,117.91,117.82,74.12704694]
[1644278653552,60.5740459,117.91,117.82,74.12704694]
[1644278653953,60.8240459,117.91,117.82,73.87704694]
[1644278655055,66.8240459,117.91,117.82,18.324]
[1644278655256,68.97087447,117.91,117.82,0.274]
[1644278655757,81.27087447,117.91,117.82,0.024]
[1644278656355,105.83777447,117.91,117.8,0.024]
[1644278657655,4.242,117.9,117.8,0.024]
[1644278657856,12.7354,117.87,117.8,0.024]
[1644278658455,37.25917743,117.86,117.8,0.024]
[1644278659257,32.25917743,117.86,117.8,0.024]
[1644278659656,12.7351,117.85,117.8,0.024]
[1644278659859,35.55442582,117.84,117.79,40.26501028]
[1644278660056,35.55442582,117.84,117.79,0.25]
[1644278660257,35.55442582,117.84,117.78,0.024]
[1644278660556,35.55442582,117.84,117.77,22.85]
[1644278661359,35.55442582,117.84,117.78,26.87384921]
[1644278661558,35.80442582,117.84,117.78,26.87384921]
[1644278662057,48.54022582,117.84,117.77,22.85]
[1644278662463,48.54022582,117.84,117.77,0.024]
[1644278662658,54.54022582,117.84,117.74,0.024]
[1644278662858,58.78422582,117.84,117.74,0.024]
[1644278663058,60.93105439,117.84,117.74,0.024]
[1644278663261,37.0075,117.83,117.72,0.024]
[1644278663457,12.7472,117.8,117.71,6.0]
[1644278663659,12.7472,117.8,117.72,0.024]
[1644278663859,12.7472,117.8,117.7,0.024]
[1644278664059,14.89402857,117.8,117.68,0.024]
[1644278664284,42.4896,117.77,117.68,41.89301134]
[1644278664461,16.545,117.82,117.69,1.81801693]
[1644278664662,49.3167,117.83,117.7,0.024]
[1644278664861,49.3167,117.83,117.7,27.814344]
[1644278665064,49.3167,117.83,117.71,6.08701693]
[1644278665264,42.4786,117.81,117.72,0.024]
[1644278665461,89.97714096,117.81,117.72,0.024]
[1644278665661,12.7405,117.8,117.72,0.024]
[1644278665862,43.96054238,117.79,117.72,0.024]
[1644278666961,56.70324238,117.79,117.72,0.024]
[1644278667668,56.70324238,117.79,117.7,0.25]
[1644278667963,56.70324238,117.79,117.71,0.024]
[1644278668162,62.95324238,117.79,117.71,0.024]
[1644278672989,102.41094238,117.79,117.69,0.024]
[1644278674591,104.55777095,117.79,117.69,0.024]
[1644278674792,136.2675676,117.79,117.67,0.024]
[1644278674992,136.2675676,117.79,117.66,0.024]
[1644278675192,128.19787095,117.79,117.66,0.024]
[1644278677795,126.05104238,117.79,117.66,0.024]
[1644278678997,142.63610821,117.79,117.66,0.024]
[1644278679197,142.63610821,117.79,117.64,0.024]
[1644278679198,6.26523,117.78,117.64,0.024]
[1644278679397,12.7544,117.74,117.64,0.024]
[1644278679597,4.248,117.73,117.64,0.024]
[1644278679797,6.39482857,117.73,117.64,0.024]
[1644278679997,38.87468104,117.72,117.64,0.024]
[1644278680198,44.87468104,117.72,117.64,0.024]
[1644278680998,12.7549,117.71,117.64,0.024]
[1644278681199,12.7549,117.71,117.63,0.024]
[1644278681401,37.94735898,117.7,117.63,0.024]
[1644278682603,47.19713317,117.67,117.63,0.024]
[1644278682803,47.19713317,117.67,117.59,0.024]
[1644278683405,49.34396174,117.67,117.59,0.024]
[1644278683604,62.09956174,117.67,117.59,0.024]
[1644278683804,74.39956174,117.67,117.59,0.024]
[1644278684106,99.29886174,117.67,117.59,0.024]
[1644278686106,97.15203317,117.67,117.59,0.024]
[1644278686306,99.29886174,117.67,117.59,0.024]
[1644278686706,105.54886174,117.67,117.59,0.024]
[1644278687107,4.25,117.66,117.59,0.024]
[1644278687308,44.89947994,117.63,117.58,0.16443592]
[1644278687507,49.15047994,117.63,117.58,0.16443592]
[1644278687707,61.45047994,117.63,117.58,0.16443592]
[1644278687907,57.19947994,117.63,117.58,0.16443592]
[1644278688307,48.59205591,117.61,117.58,0.16443592]
[1644278688509,43.31121594,117.59,117.58,0.16443592]
[1644278690508,43.56121594,117.59,117.58,0.16443592]
[1644278691313,43.31121594,117.59,117.58,0.16443592]
[1644278692318,45.45804451,117.59,117.46,12.7664]
[1644278692525,0.16443592,117.58,117.48,0.2118368]
[1644278692710,4.253,117.57,117.48,0.2118368]
[1644278692911,39.88157836,117.56,117.48,0.2118368]
[1644278693112,54.32840693,117.56,117.48,0.2118368]
[1644278693319,2.14682857,117.55,117.48,0.2118368]
[1644278693911,14.91902857,117.55,117.48,0.2118368]
[1644278694513,38.50770333,117.54,117.48,0.2118368]
[1644278695111,40.6545319,117.54,117.48,0.2118368]
[1644278695914,12.7756,117.53,117.48,0.2118368]
[1644278696113,41.64563028,117.52,117.48,0.2118368]
[1644278698044,12.7743,117.51,117.48,0.2118368]
[1644278698217,6.06439994,117.5,117.48,0.2118368]
[1644278698822,44.10169381,117.49,117.48,0.2118368]
[1644278699220,56.87889381,117.49,117.48,0.2118368]
[1644278700019,59.02572238,117.49,117.48,0.2118368]
[1644278700318,63.28072238,117.49,117.48,0.2118368]
[1644278701323,19.42902857,117.49,117.48,0.0018368]
[1644278701621,22.46122854,117.49,117.4,0.46407904]
[1644278701820,12.7831,117.46,117.4,0.46407904]
[1644278702220,45.43362741,117.45,117.4,0.46407904]
[1644278702723,47.58045598,117.45,117.33,77.3344]
[1644278702920,12.7836,117.44,117.33,73.0774]
[1644278703120,12.7836,117.44,117.32,78.36596125]
[1644278703121,4.259,117.43,117.3,1.19936125]
[1644278703325,6.26523,117.42,117.27,0.2703875]
[1644278703522,53.97072893,117.41,117.27,0.2703875]
[1644278703723,4.261,117.4,117.27,0.2703875]
[1644278703924,53.41049201,117.39,117.27,0.2703875]
[1644278704120,12.7927,117.36,117.27,0.2703875]
[1644278704326,37.61801437,117.35,117.27,0.2703875]
[1644278704919,37.86801437,117.35,117.27,0.2703875]
[1644278705125,46.9033,117.39,117.27,2.08934273]
[1644278705319,12.7896,117.38,117.27,2.33934273]
[1644278705545,12.7896,117.38,117.27,8.33934273]
[1644278705723,12.7896,117.38,117.27,6.5203875]
[1644278705921,12.7896,117.38,117.28,1.81895523]
[1644278706221,37.18293934,117.37,117.28,41.15008838]
[1644278706425,12.7917,117.36,117.28,6.25]
[1644278706824,12.7917,117.36,117.27,0.2703875]
[1644278707226,13.0417,117.36,117.27,0.2703875]
[1644278707424,12.7939,117.34,117.27,0.2703875]
[1644278707726,47.67273102,117.33,117.27,0.2943875]
[1644278707927,12.7939,117.34,117.27,0.2943875]
[1644278708126,4.261,117.39,117.27,2.08934273]
[1644278708326,23.2451,117.41,117.28,4.261]
[1644278708528,17.0474,117.4,117.28,0.024]
[1644278708826,17.0474,117.4,117.29,0.024]
[1644278709030,58.75049035,117.39,117.29,0.024]
[1644278709324,45.33058825,117.37,117.29,0.024]
[1644278709525,57.63058825,117.37,117.29,0.024]
[1644278709725,59.77741682,117.37,117.28,0.024]
[1644278709927,12.7935,117.36,117.28,0.024]
[1644278710225,47.8136467,117.35,117.28,0.024]
[1644278710426,47.8136467,117.35,117.27,0.2943875]
[1644278710627,2.14682857,117.34,117.27,0.2703875]
[1644278710829,6.58013511,117.33,117.27,0.2703875]
[1644278711127,53.84595092,117.32,117.27,0.2703875]
[1644278711327,43.83385596,117.3,117.27,0.2703875]
[1644278711532,40.27741147,117.28,117.27,0.2703875]
[1644278713053,53.32781147,117.28,117.27,0.2703875]
[1644278713828,65.62781147,117.28,117.27,0.2703875]
[1644278715131,71.62781147,117.28,117.27,0.2703875]
[1644278715330,73.77464004,117.28,117.22,0.540775]
[1644278715530,12.8076,117.26,117.22,0.540775]
[1644278715730,4.264,117.25,117.22,0.540775]
[1644278716830,12.3,117.26,117.22,0.540775]
[1644278717030,12.8073,117.24,117.22,0.540775]
[1644278717231,52.9446,117.28,117.22,0.540775]
[1644278717432,52.47229226,117.29,117.22,0.540775]
[1644278717831,40.17229226,117.29,117.22,0.540775]
[1644278718539,16.564,117.31,117.22,0.540775]
[1644278718733,54.9656,117.32,117.22,0.540775]
[1644278718935,63.11242857,117.32,117.22,0.540775]
[1644278719136,4.263,117.31,117.22,0.540775]
[1644278719340,12.3,117.3,117.22,0.540775]
[1644278719534,12.8013,117.28,117.22,0.540775]
[1644278720035,29.3653,117.28,117.22,0.540775]
[1644278720235,2.14682857,117.27,117.22,0.540775]
[1644278720557,12.8058,117.26,117.22,0.540775]
[1644278722638,12.8004,117.28,117.22,0.540775]
[1644278723439,31.19722857,117.28,117.22,0.540775]
[1644278723640,38.4795042,117.27,117.22,0.540775]
[1644278723842,12.8058,117.26,117.22,0.540775]
[1644278724042,4.264,117.25,117.22,0.540775]
[1644278724245,6.06439994,117.24,117.22,0.540775]
[1644278725844,10.25,117.29,117.22,0.540775]
[1644278726044,12.8021,117.28,117.22,0.540775]
[1644278726445,18.5897332,117.33,117.22,0.540775]
[1644278726446,4.264,117.34,117.22,2.37153767]
[1644278726645,4.264,117.34,117.22,18.62153767]
[1644278726846,4.264,117.34,117.22,18.87153767]
[1644278727044,45.77359561,117.33,117.23,46.55360582]
[1644278727245,45.77359561,117.33,117.24,10.25]
[1644278727544,45.77359561,117.33,117.22,6.540775]
[1644278727743,54.17042418,117.33,117.22,0.540775]
[1644278727947,66.96532418,117.33,117.22,0.540775]
[1644278728144,64.81849561,117.33,117.22,0.540775]
[1644278728544,64.56849561,117.33,117.23,45.85329638]
[1644278728746,58.56849561,117.33,117.23,45.85329638]
[1644278728944,45.77359561,117.33,117.24,12.08659871]
[1644278729145,45.77359561,117.33,117.25,27.96036426]
[1644278729451,45.77359561,117.33,117.25,28.21036426]
[1644278729845,45.77359561,117.33,117.25,28.75113926]
[1644278730046,45.77359561,117.33,117.26,10.25]
[1644278730345,45.77359561,117.33,117.26,0.25]
[1644278730848,45.77359561,117.33,117.26,11.064775]
[1644278731047,45.77359561,117.33,117.26,0.814775]
[1644278731746,45.77359561,117.33,117.26,0.564775]
[1644278732349,46.02359561,117.33,117.26,0.564775]
[1644278732749,12.7902,117.37,117.27,47.21297404]
[1644278732948,42.6313,117.41,117.28,0.024]
[1644278733149,42.6313,117.41,117.29,10.25]
[1644278733350,42.6313,117.41,117.3,0.024]
[1644278733749,36.89291539,117.4,117.3,0.024]
[1644278733950,35.90356383,117.38,117.3,0.024]
[1644278734151,35.90356383,117.38,117.28,0.024]
[1644278734850,35.90356383,117.38,117.28,10.274]
[1644278735052,35.90356383,117.38,117.29,0.024]
[1644278735850,36.15356383,117.38,117.29,0.024]
[1644278736050,12.7913,117.36,117.29,36.8746866]
[1644278736251,40.72114464,117.35,117.29,0.274]
[1644278736450,40.72114464,117.35,117.28,10.274]
[1644278736652,40.72114464,117.35,117.28,0.274]
[1644278737055,40.72114464,117.35,117.28,0.024]
[1644278737254,40.72114464,117.35,117.27,0.564775]
[1644278737954,4.261,117.34,117.27,0.564775]
[1644278738352,45.29484832,117.33,117.27,0.564775]
[1644278738554,45.29484832,117.33,117.27,0.540775]
[1644278738952,12.7973,117.32,117.27,0.540775]
[1644278739156,17.0583,117.32,117.27,0.540775]
[1644278739361,48.29904972,117.31,117.27,0.540775]
[1644278741055,36.39891491,117.29,117.27,0.540775]
[1644278741255,6.06439994,117.28,117.26,0.540775]
[1644278741458,6.06439994,117.28,117.23,0.024]
[1644278741655,6.06439994,117.28,117.21,0.024]
[1644278742057,12.06439994,117.28,117.21,0.024]
[1644278742262,12.8027,117.26,117.21,0.024]
[1644278742556,34.36853132,117.25,117.19,0.024]
[1644278742756,34.36853132,117.25,117.17,0.42368688]
[1644278743981,47.17153132,117.25,117.17,0.42368688]
[1644278744184,47.42153132,117.25,117.17,0.42368688]
[1644278747284,47.42153132,117.25,117.17,40.16937365]
[1644278747486,47.17153132,117.25,117.17,40.16937365]
[1644278747683,47.17153132,117.25,117.17,46.41937365]
[1644278747884,4.265,117.3,117.17,46.41937365]
[1644278747885,12.8006,117.27,117.17,46.41937365]
[1644278748082,4.264,117.35,117.18,10.274]
[1644278748284,52.9635,117.36,117.18,37.43626665]
[1644278748485,16.25,117.35,117.19,2.42406665]
[1644278748683,4.263,117.34,117.2,10.274]
[1644278748883,36.42160018,117.33,117.21,48.0782]
[1644278749085,41.32226281,117.31,117.22,0.024]
[1644278749485,54.11876281,117.31,117.22,0.024]
[1644278749686,6.40982857,117.3,117.2,0.024]
[1644278749884,16.65982857,117.3,117.19,0.024]
[1644278750286,14.513,117.3,117.19,0.024]
[1644278750586,36.49385758,117.29,117.19,0.024]
[1644278750986,40.99513425,117.26,117.19,0.024]
[1644278752386,53.79633425,117.26,117.19,0.024]
[1644278755194,54.04633425,117.26,117.19,0.024]
[1644278756593,53.79633425,117.26,117.19,0.024]
[1644278758700,54.04633425,117.26,117.19,0.024]
[1644278760002,2.14682857,117.25,117.19,0.024]
[1644278760201,55.90676231,117.24,117.17,0.42368688]
[1644278762404,56.15676231,117.24,117.17,0.42368688]
[1644278765306,12.8097,117.24,117.17,0.42368688]
[1644278765510,4.266,117.26,117.18,10.25]
[1644278765706,4.265,117.33,117.18,10.524]
[1644278765907,77.01622168,117.36,117.19,46.3527]
[1644278766206,83.28145168,117.36,117.2,0.024]
[1644278766406,83.28145168,117.36,117.2,36.40802162]
[1644278766407,61.80421578,117.35,117.2,36.40802162]
[1644278766607,36.12679034,117.33,117.21,0.024]
[1644278766907,12.7982,117.29,117.21,0.024]
[1644278767109,42.63618051,117.28,117.21,0.024]
[1644278768216,12.8012,117.27,117.21,0.024]
[1644278768413,12.8012,117.27,117.18,0.024]
[1644278769018,57.68917576,117.26,117.18,0.024]
[1644278769215,12.8082,117.24,117.12,10.25]
[1644278769415,4.266,117.23,117.1,10.90774368]
[1644278769615,10.25,117.22,117.1,0.15774368]
[1644278770215,43.90133855,117.19,117.1,0.15774368]
[1644278770416,43.90133855,117.19,117.11,42.77297144]
[1644278770615,43.90133855,117.19,117.11,48.77297144]
[1644278770823,12.8122,117.2,117.11,49.02297144]
[1644278771817,40.08765362,117.19,117.11,49.02297144]
[1644278772017,12.8122,117.2,117.11,59.27297144]
[1644278772217,13.0564,117.22,117.11,59.27297144]
[1644278772416,13.0564,117.22,117.11,63.53997144]
[1644278772819,12.8064,117.22,117.11,63.53997144]
[1644278773018,44.39829492,117.21,117.11,63.28997144]
[1644278773218,44.39829492,117.21,117.11,59.02297144]
[1644278773619,57.20509492,117.21,117.11,71.82937144]
[1644278773819,57.20509492,117.21,117.11,48.77297144]
[1644278774018,65.35192349,117.21,117.11,48.77297144]
[1644278774220,57.20509492,117.21,117.11,48.77297144]
[1644278774619,57.45509492,117.21,117.11,48.77297144]
[1644278775120,57.45509492,117.21,117.11,49.02297144]
[1644278775322,57.45509492,117.21,117.11,49.55269622]
[1644278775725,59.60192349,117.21,117.11,0.52972478]
[1644278775927,98.53612349,117.21,117.11,0.52972478]
[1644278776127,4.267,117.2,117.11,0.52972478]
[1644278776326,12.8153,117.18,117.11,0.52972478]
[1644278776524,4.268,117.17,117.11,0.52972478]
[1644278776727,36.65669365,117.16,117.11,0.52972478]
[1644278777944,49.47159365,117.16,117.11,0.52972478]
[1644278778245,49.72159365,117.16,117.11,0.52972478]
[1644278778744,49.72159365,117.16,117.1,0.6280189]
[1644278778946,2.14682857,117.15,117.05,22.8978]
[1644278779146,12.8171,117.12,117.05,22.8978]
[1644278779445,34.43441911,117.11,117.03,23.8567903]
[1644278779644,34.43441911,117.11,117.04,48.54323286]
[1644278779844,34.43441911,117.11,117.03,0.5045903]
[1644278780047,34.73533449,117.11,117.03,0.5045903]
[1644278780448,34.43441911,117.11,117.03,0.5045903]
[1644278781050,35.79705718,117.09,117.03,0.5045903]
[1644278781246,35.79705718,117.09,117.04,39.90571829]
[1644278781448,67.6739,117.12,117.04,39.90571829]
[1644278782047,67.6739,117.12,117.04,40.15571829]
[1644278782249,67.6739,117.12,117.04,39.90571829]
[1644278782448,39.31250561,117.11,117.04,39.90571829]
[1644278782647,39.31250561,117.11,117.03,0.5045903]
[1644278783048,52.13100561,117.11,117.03,0.5045903]
[1644278783549,52.13100561,117.11,117.04,36.58457596]
[1644278784148,52.38100561,117.11,117.04,36.58457596]
[1644278784750,52.13100561,117.11,117.04,36.85857596]
[1644278785350,52.13100561,117.11,117.04,36.60857596]
[1644278786155,52.38100561,117.11,117.04,36.60857596]
[1644278789257,52.13100561,117.11,117.04,36.60857596]
[1644278789759,52.13100561,117.11,117.05,0.99966316]
[1644278790763,52.38100561,117.11,117.05,0.99966316]
[1644278791964,39.31250561,117.11,117.05,0.99966316]
[1644278793062,52.13040561,117.11,117.05,0.99966316]
[1644278800068,58.38040561,117.11,117.04,0.024]
[1644278800268,52.38040561,117.11,117.03,0.5045903]
[1644278801169,82.84980561,117.11,117.03,0.5045903]
[1644278801771,76.84980561,117.11,117.03,0.5045903]
[1644278802772,78.99663418,117.11,116.98,0.59802214]
[1644278802971,4.271,117.1,116.98,0.59802214]
[1644278803172,12.8244,117.07,116.98,0.59802214]
[1644278803372,12.8244,117.07,116.99,1.85232804]
[1644278803775,37.78617054,117.07,117.0,43.25267788]
[1644278803974,37.78617054,117.07,117.0,55.56267788]
[1644278804177,37.78617054,117.07,117.0,63.66845035]
[1644278804576,42.7316,117.12,117.0,63.66845035]
[1644278804780,4.271,117.18,117.01,4.271]
[1644278804977,2.39812168,117.19,117.02,166.25]
[1644278805274,46.1708,117.21,117.05,153.94]
[1644278805477,36.02692224,117.2,117.06,52.67139503]
[1644278805678,36.02692224,117.2,117.06,60.5271675]
[1644278805875,36.02692224,117.2,117.06,60.7771675]
[1644278806079,36.02692224,117.2,117.08,37.17042189]
[1644278806275,36.02692224,117.2,117.1,40.54113286]
[1644278806476,36.02692224,117.2,117.1,52.85113286]
[1644278806680,36.02692224,117.2,117.1,59.10113286]
[1644278807077,43.96534732,117.18,117.1,59.10113286]
[1644278807283,43.96534732,117.18,117.1,58.85113286]
[1644278807478,43.96534732,117.18,117.1,18.31]
[1644278808277,44.21534732,117.18,117.1,18.56]
[1644278808478,57.02574732,117.18,117.11,46.78992206]
[1644278808882,57.02574732,117.18,117.1,6.0]
[1644278809077,57.02574732,117.18,117.09,29.599]
[1644278809281,57.02574732,117.18,117.09,6.0]
[1644278809479,4.268,117.17,117.09,6.0]
[1644278809678,4.268,117.17,117.05,12.31]
[1644278809878,4.268,117.17,117.05,38.96481179]
[1644278809879,12.8162,117.15,117.05,38.96481179]
[1644278810077,45.47285884,117.14,117.05,38.96481179]
[1644278810280,45.47285884,117.14,117.05,51.27481179]
[1644278810699,45.47285884,117.14,117.05,51.52481179]
[1644278811099,45.47285884,117.14,117.05,57.52481179]
[1644278811499,45.47285884,117.14,117.05,51.52481179]
[1644278811904,58.28665884,117.14,117.05,51.52481179]
[1644278812803,58.28665884,117.14,117.05,51.27481179]
[1644278814704,58.28665884,117.14,117.05,12.31]
[1644278815503,58.28665884,117.14,117.04,24.9472]
[1644278815504,58.53665884,117.14,117.04,24.9472]
[1644278815705,58.53665884,117.14,117.04,45.1780311]
[1644278816404,58.53665884,117.14,117.04,51.1780311]
[1644278816604,58.53665884,117.14,117.04,45.1780311]
[1644278816807,58.28665884,117.14,117.04,45.1780311]
[1644278817705,58.28665884,117.14,117.04,63.4880311]
[1644278818104,58.28665884,117.14,117.04,63.7380311]
[1644278818705,58.28665884,117.14,117.05,0.024]
[1644278819306,58.53665884,117.14,117.05,0.024]
[1644278821109,58.28665884,117.14,117.05,0.024]
[1644278821314,58.28665884,117.14,117.06,34.55580508]
[1644278821709,58.28665884,117.14,117.06,34.80580508]
[1644278822513,45.47285884,117.14,117.08,45.52238426]
[1644278822710,45.47285884,117.14,117.08,45.77238426]
[1644278823612,45.47285884,117.14,117.08,0.25]
[1644278823814,45.47285884,117.14,117.07,12.31]
[1644278824013,45.47285884,117.14,117.07,18.31]
[1644278824213,45.47285884,117.14,117.07,18.56]
[1644278824418,45.47285884,117.14,117.07,18.31]
[1644278824616,45.47285884,117.14,117.07,59.54186713]
[1644278824814,45.47285884,117.14,117.07,59.79186713]
[1644278825013,58.28615884,117.14,117.07,47.48186713]
[1644278826619,58.28615884,117.14,117.07,59.79186713]
[1644278826818,58.28615884,117.14,117.07,65.79186713]
[1644278827015,58.28615884,117.14,117.07,59.79186713]
[1644278827418,58.28615884,117.14,117.07,0.25]
[1644278827616,58.28615884,117.14,117.06,6.0]
[1644278827819,58.28615884,117.14,117.04,1.2156347]
[1644278828016,58.28615884,117.14,117.04,12.31]
[1644278828218,58.28615884,117.14,117.03,54.1450347]
[1644278828419,58.28615884,117.14,117.04,34.73199508]
[1644278829121,12.8133,117.14,117.04,34.73199508]
[1644278829320,12.8133,117.14,117.04,54.25762978]
[1644278829520,12.8113,117.16,117.05,3.07268064]
[1644278829721,12.8113,117.16,117.06,13.5256347]
[1644278829921,12.8113,117.16,117.06,15.38268064]
[1644278830120,43.36201222,117.15,117.07,42.01914921]
[1644278830322,43.36201222,117.15,117.09,40.3048554]
[1644278830722,43.36201222,117.15,117.09,46.5548554]
[1644278831525,43.36201222,117.15,117.09,0.25]
[1644278831726,43.36201222,117.15,117.08,12.56]
[1644278832427,43.36201222,117.15,117.09,44.41988569]
[1644278832827,43.36201222,117.15,117.09,44.66988569]
[1644278833226,12.8095,117.18,117.09,44.66988569]
[1644278833428,1.20950061,117.21,117.1,12.31]
[1644278833629,0.69944202,117.23,117.11,7.0]
[1644278833840,59.7416,117.3,117.12,12.31]
[1644278833841,128.22402168,117.3,117.12,12.31]
[1644278834029,12.7259,117.3,117.15,153.94]
[1644278834227,36.43246215,117.29,117.17,153.94]
[1644278834428,2.39812168,117.31,117.2,153.94]
[1644278834630,2.39812168,117.34,117.21,16.574]
[1644278834831,2.39812168,117.34,117.21,177.63854403]
[1644278835028,2.39812168,117.36,117.21,24.69854403]
[1644278835228,2.39812168,117.36,117.23,12.7926]
[1644278835428,57.09914477,117.35,117.24,49.57673699]
[1644278835629,63.50697334,117.35,117.24,55.57673699]
[1644278835829,61.36014477,117.35,117.24,55.82673699]
[1644278836032,57.09914477,117.35,117.24,55.82673699]
[1644278837033,57.09914477,117.35,117.24,68.61803699]
[1644278837232,59.24597334,117.35,117.24,18.31]
[1644278837436,65.24597334,117.35,117.24,12.31]
[1644278837633,12.7977,117.3,117.21,12.31]
[1644278838034,65.58041518,117.35,117.21,12.31]
[1644278838236,36.95047754,117.29,117.22,41.72881426]
[1644278838635,36.95047754,117.29,117.22,41.97881426]
[1644278838935,36.95047754,117.29,117.23,12.31]
[1644278839734,30.80032857,117.35,117.24,47.39393876]